fUST/lending_fUST_20240607
["ID","MTS","AMOUNT","RATE_DAILY","PERIOD"]
[328748674,1717764150653,886.35,0.00010959,2]
[328748675,1717764245506,262.624179,0.00013861,2]
[328748676,1717764261389,2785.0213593,0.00013977,2]
[328748677,1717764290456,272.44632851,9.999e-05,2]
[328748680,1717764542517,285.76830085,9.999e-05,2]
[328748686,1717764623692,837.83743989,9.999e-05,2]
[328748734,1717764635722,-216.23913996,0.00014722,2]
[328748736,1717764635732,-1216.57191302,0.00014723,2]
[328748738,1717764635744,-693.92544064,0.00014723,2]
[328748740,1717764635754,-2120.4704466,0.00014724,2]
[328748742,1717764635764,-284.4592241,0.00014725,2]
[328748744,1717764635773,-157.66978397,0.00014725,2]
[328748746,1717764635783,-515.43295454,0.00014725,2]
[328748748,1717764635793,-156.91563212,0.00014726,2]
[328748750,1717764635803,-1441.62192764,0.00014726,2]
[328748752,1717764635812,-154.9690062,0.00014727,2]
[328748754,1717764635822,-164.57151092,0.00014727,2]
[328748756,1717764635832,-19301.54694971,0.00014727,2]
[328748758,1717764635842,-1982.90053047,0.00014728,2]
[328748760,1717764635852,-1281.50835311,0.00014728,2]
[328748762,1717764635861,-8572.53124457,0.00014728,2]
[328748870,1717764638659,-1514.21372609,0.00014728,2]
[328748873,1717764638671,-269.11596186,0.00014728,2]
[328749235,1717764642546,-36264.57804297,0.00014728,2]
[328749237,1717764642555,-9585.69744994,0.00014729,2]
[328749238,1717764642564,-2641.73909648,0.00014729,2]
[328749241,1717764642575,-1489.20952701,0.00015,2]
[328749242,1717764642584,-2409.63345823,0.00015,2]
[328749244,1717764642594,-1100.27196223,0.00015594,2]
[328749247,1717764642604,-190.4326803,0.000156,2]
[328749249,1717764642614,-583.01329238,0.00019078,2]
[328749251,1717764642624,-195.59961382,0.00019178,2]
[328749252,1717764642635,-497.20432968,0.00019178,2]
[328749255,1717764642645,-500.0,0.00019178,2]
[328749257,1717764642656,-543.74005181,0.00019178,2]
[328749259,1717764642665,-500.0,0.00019178,2]
[328749261,1717764642675,-456.24093667,0.00019178,2]
[328749263,1717764642685,-500.0,0.00019178,2]
[328749265,1717764642695,-500.0,0.00019178,2]
[328749268,1717764642705,-500.0,0.00019178,2]
[328749270,1717764642715,-608.5417786,0.00019178,2]
[328749272,1717764642725,-500.0,0.00019178,2]
[328749273,1717764642734,-574.4947064,0.00019178,2]
[328749275,1717764642743,-500.0,0.00019178,2]
[328749278,1717764642753,-202.66861739,0.00019178,2]
[328749280,1717764642763,-500.0,0.00019178,2]
[328749282,1717764642773,-500.0,0.00019178,2]
[328749284,1717764642783,-500.0,0.00019178,2]
[328749286,1717764642793,-500.0,0.00019178,2]
[328749288,1717764642803,-500.0,0.00019178,2]
[328749290,1717764642812,-500.0,0.00019178,2]
[328749292,1717764642822,-500.0,0.00019178,2]
[328749294,1717764642831,-500.0,0.00019178,2]
[328749296,1717764642840,-500.0,0.00019178,2]
[328749298,1717764642849,-500.0,0.00019178,2]
[328749300,1717764642858,-500.0,0.00019178,2]
[328749304,1717764642867,-500.0,0.00019178,2]
[328749307,1717764642878,-500.0,0.00019178,2]
[328749309,1717764642888,-500.0,0.00019178,2]
[328749312,1717764642899,-500.0,0.00019178,2]
[328749314,1717764642909,-500.0,0.00019178,2]
[328749316,1717764642920,-500.0,0.00019178,2]
[328749318,1717764642929,-500.0,0.00019178,2]
[328749320,1717764642939,-500.0,0.00019178,2]
[328749322,1717764642948,-500.0,0.00019178,2]
[328749324,1717764642960,-500.0,0.00019178,2]
[328749326,1717764642970,-500.0,0.00019178,2]
[328749328,1717764642980,-500.0,0.00019178,2]
[328749329,1717764642990,-500.0,0.00019178,2]
[328749332,1717764643000,-500.0,0.00019178,2]
[328749334,1717764643010,-155.58398392,0.00019178,2]
[328749338,1717764643020,-650.0,0.00019178,2]
[328749340,1717764643029,-500.0,0.00019178,2]
[328749342,1717764643038,-500.0,0.00019178,2]
[328749344,1717764643048,-500.0,0.00019178,2]
[328749346,1717764643057,-500.0,0.00019178,2]
[328749348,1717764643066,-500.0,0.00019178,2]
[328749350,1717764643075,-500.0,0.00019178,2]
[328749351,1717764643084,-500.0,0.00019178,2]
[328749353,1717764643093,-500.0,0.00019178,2]
[328749355,1717764643102,-500.0,0.00019178,2]
[328749357,1717764643112,-443.87193139,0.00019178,2]
[328749358,1717764643122,-500.0,0.00019178,2]
[328749360,1717764643133,-500.0,0.00019178,2]
[328749362,1717764643141,-500.0,0.00019178,2]
[328749364,1717764643150,-500.0,0.00019178,2]
[328749366,1717764643160,-500.0,0.00019178,2]
[328749368,1717764643169,-500.0,0.00019178,2]
[328749370,1717764643179,-601.24970201,0.00019178,2]
[328749372,1717764643188,-500.0,0.00019178,2]
[328749373,1717764643197,-500.0,0.00019178,2]
[328749375,1717764643206,-500.0,0.00019178,2]
[328749377,1717764643215,-500.0,0.00019178,2]
[328749379,1717764643225,-47.19191715,0.00019178,2]
[328749381,1717764643238,-452.80808285,0.00019178,2]
[328749383,1717764643247,-500.0,0.00019178,2]
[328749385,1717764643256,-500.0,0.00019178,2]
[328749386,1717764643265,-47.22624495,0.00019178,2]
[328749388,1717764643276,-452.77375505,0.00019178,2]
[328749390,1717764643286,-500.0,0.00019178,2]
[328749392,1717764643295,-500.0,0.00019178,2]
[328749393,1717764643306,-500.0,0.00019178,2]
[328749394,1717764643316,-500.0,0.00019178,2]
[328749396,1717764643325,-500.0,0.00019178,2]
[328749398,1717764643334,-500.0,0.00019178,2]
[328749400,1717764643344,-454.12624495,0.00019178,2]
[328749402,1717764643356,-45.87375505,0.00019178,2]
[328749404,1717764643365,-500.0,0.00019178,2]
[328749406,1717764643375,-500.0,0.00019178,2]
[328749408,1717764643386,-500.0,0.00019178,2]
[328749409,1717764643395,-500.0,0.00019178,2]
[328749411,1717764643405,-500.0,0.00019178,2]
[328749413,1717764643416,-500.0,0.00019178,2]
[328749415,1717764643426,-500.0,0.00019178,2]
[328749417,1717764643436,-500.0,0.00019178,2]
[328749419,1717764643445,-500.0,0.00019178,2]
[328749421,1717764643456,-500.0,0.00019178,2]
[328749423,1717764643465,-500.0,0.00019178,2]
[328749425,1717764643474,-500.0,0.00019178,2]
[328749427,1717764643484,-500.0,0.00019178,2]
[328749428,1717764643494,-500.0,0.00019178,2]
[328749430,1717764643503,-500.0,0.00019178,2]
[328749432,1717764643513,-500.0,0.00019178,2]
[328749434,1717764643523,-500.0,0.00019178,2]
[328749436,1717764643534,-500.0,0.00019178,2]
[328749438,1717764643544,-500.0,0.00019178,2]
[328749440,1717764643554,-576.65748794,0.00019178,2]
[328749442,1717764643563,-500.0,0.00019178,2]
[328749443,1717764643572,-500.0,0.00019178,2]
[328749445,1717764643582,-500.0,0.00019178,2]
[328749447,1717764643591,-500.0,0.00019178,2]
[328749449,1717764643600,-500.0,0.00019178,2]
[328749451,1717764643609,-500.0,0.00019178,2]
[328749453,1717764643619,-169.6446124,0.00019178,2]
[328749454,1717764643634,-225.05706064,0.0002,2]
[328749456,1717764643643,-281.19763205,0.0002,2]
[328749458,1717764643652,-1354.67102739,0.00020526,2]
[328749460,1717764643661,-583.01329238,0.00020527,2]
[328749462,1717764643671,-150.0,0.000215,2]
[328749464,1717764643680,-167.080297,0.00021918,2]
[328749465,1717764643689,-583.01329238,0.00021976,2]
[328749467,1717764643698,-167.080297,0.00022773,2]
[328749469,1717764643708,-494.0,0.00022884,2]
[328749471,1717764643718,-150.0,0.00022884,2]
[328749473,1717764643728,-378.44723083,0.00022898,2]
[328749475,1717764643737,-154.9690062,0.00023,2]
[328749477,1717764643746,-153.0,0.00023388,2]
[328749479,1717764643756,-583.01329238,0.00023424,2]
[328749481,1717764643765,-1306.03494176,0.00023581,2]
[328749483,1717764643774,-151.0,0.00023614,5]
[328749485,1717764643786,-167.080297,0.00023627,2]
[328749487,1717764643795,-2068.41315067,0.000238,2]
[328749489,1717764643807,-36526.46113863,0.000238,2]
[328749491,1717764643817,-4910.57159814,0.00023988,2]
[328749493,1717764643827,-285.73167299,0.00023998,2]
[328749494,1717764643836,-288.3718603,0.00023998,2]
[328749496,1717764643846,-11228.1262382,0.00023998,7]
[328749498,1717764643855,-272.23220278,0.00023999,2]
[328749500,1717764643865,-9913.51015163,0.00023999,2]
[328749502,1717764643879,-4727.42411059,0.00024,7]
[328749504,1717764643890,-500.0,0.00024,7]
[328749506,1717764643900,-605.8,0.00024,7]
[328749508,1717764643910,-31881.11729423,0.00024,2]
[328749510,1717764643921,-23171.13060224,0.00024,2]
[328749512,1717764643933,-75622.90198953,0.00024,2]
[328749514,1717764643943,-151.0,0.00024043,7]
[328749516,1717764643953,-200.0,0.0002411,2]
[328749518,1717764643963,-600.0,0.00024318,2]
[328749520,1717764643972,-153.0,0.00024347,2]
[328749522,1717764643981,-153.0,0.00024347,2]
[328749524,1717764643991,-153.0,0.00024347,2]
[328749526,1717764644000,-153.0,0.00024347,2]
[328749528,1717764644010,-76667.70677581,0.00024379,3]
[328749530,1717764644019,-151.0,0.00024379,2]
[328749532,1717764644029,-846.845031,0.00024379,2]
[328749534,1717764644038,-846.845031,0.00024379,2]
[328749535,1717764644048,-612.922418,0.00024379,2]
[328749537,1717764644058,-612.922418,0.00024379,2]
[328749539,1717764644067,-151.0,0.00024472,7]
[328749541,1717764644077,-167.080297,0.00024482,2]
[328749543,1717764644087,-166.666666,0.00024493,2]
[328749545,1717764644096,-380.0,0.00024658,2]
[328749547,1717764644106,-200.0,0.00024658,2]
[328749549,1717764644116,-200.0,0.00024658,15]
[328749551,1717764644125,-500.0,0.00024658,2]
[328749553,1717764644137,-500.0,0.00024658,2]
[328749555,1717764644147,-574.99413369,0.00024658,2]
[328749556,1717764644157,-2000.0,0.000248,2]
[328749558,1717764644166,-583.01329238,0.00024873,2]
[328749560,1717764644176,-239.82509066,0.00024874,2]
[328749562,1717764644187,-4236.94913646,0.00024887,2]
[328749564,1717764644196,-331.46084678,0.00024898,2]
[328749566,1717764644206,-238.638152,0.00024898,2]
[328749568,1717764644216,-267.58751134,0.00024898,7]
[328749570,1717764644226,-738.19867326,0.00024898,2]
[328749572,1717764644235,-682.49626378,0.00024898,2]
[328749574,1717764644245,-42059.4314286,0.00024899,2]
[328749576,1717764644255,-151.0,0.000249,2]
[328749578,1717764644264,-243.856921,0.000249,2]
[328749580,1717764644274,-243.856921,0.000249,2]
[328749582,1717764644284,-151.0,0.000249,2]
[328749584,1717764644293,-151.0,0.000249,2]
[328749586,1717764644303,-151.0,0.000249,2]
[328749587,1717764644313,-5111.53227863,0.000249,2]
[328749589,1717764644323,-151.0,0.00024902,7]
[328749591,1717764644332,-231.0,0.00024932,2]
[328749593,1717764644342,-47869.5082448,0.0002497,11]
[328749595,1717764644354,-434.22999995,0.0002497,11]
[328749632,1717764644742,-302.82630629,0.00014727,2]
[328749634,1717764644752,-201.10021842,0.0002497,11]
[328749640,1717764644800,-1590.14548422,0.0002497,11]
[328749642,1717764644813,-6933.01605261,0.0002497,11]
[328749644,1717764644822,-151.0,0.0002497,2]
[328749645,1717764644832,-151.0,0.0002497,2]
[328749647,1717764644842,-151.0,0.0002497,2]
[328749649,1717764644851,-151.0,0.0002497,2]
[328749651,1717764644861,-846.845031,0.0002497,2]
[328749653,1717764644871,-846.845031,0.0002497,2]
[328749655,1717764644884,-612.922418,0.0002497,2]
[328749657,1717764644893,-612.922418,0.0002497,2]
[328749659,1717764644903,-151.0,0.0002497,2]
[328749660,1717764644913,-151.0,0.0002497,2]
[328749662,1717764644924,-151.0,0.0002497,2]
[328749664,1717764644935,-288.063405,0.0002497,2]
[328749666,1717764644944,-288.063405,0.0002497,2]
[328749668,1717764644955,-247.321583,0.0002497,2]
[328749670,1717764644971,-533.758426,0.0002497,2]
[328749672,1717764644980,-533.758426,0.0002497,2]
[328749674,1717764644990,-247.321583,0.0002497,2]
[328749676,1717764645000,-248.19823,0.0002497,2]
[328749678,1717764645010,-292.526787,0.0002497,2]
[328749680,1717764645020,-248.19823,0.0002497,2]
[328749682,1717764645029,-151.0,0.0002497,2]
[328749684,1717764645039,-151.0,0.0002497,2]
[328749686,1717764645048,-151.0,0.0002497,2]
[328749688,1717764645057,-241.068115,0.0002497,2]
[328749690,1717764645067,-263.536489,0.0002497,2]
[328749692,1717764645076,-376.792858,0.0002497,2]
[328749694,1717764645086,-241.068115,0.0002497,2]
[328749696,1717764645096,-376.792858,0.0002497,2]
[328749698,1717764645106,-263.536489,0.0002497,2]
[328749700,1717764645116,-200.91462461,0.00024972,2]
[328749702,1717764645126,-2145.39630039,0.00024973,5]
[328749704,1717764645139,-6012.51357075,0.00024973,5]
[328749707,1717764645151,-4275.0,0.00024973,5]
[328749832,1717764646565,-631.20330543,0.00014727,2]
[328749835,1717764646577,-2010.53579105,0.00014727,2]
[328749837,1717764646586,-945.46842875,0.00015593,2]
[328749839,1717764646596,-857.89578021,0.00023998,2]
[328749841,1717764646609,-1475.78145314,0.00023998,2]
[328749843,1717764646621,-2358.09123893,0.00023998,2]
[328749854,1717764646716,-7113.20785081,0.00023998,2]
[328749873,1717764646900,-7496.57062662,0.00023998,2]
[328749875,1717764646910,-2351.64937338,0.00024973,5]
[328750151,1717765069645,154.9690062,9.999e-05,2]
[328750152,1717765189207,371.24,0.00010959,2]
[328750167,1717765250671,530.04771568,9.999e-05,2]
[328750168,1717765255422,158.99250424,9.999e-05,2]
[328750169,1717765268247,317.3700773,9.999e-05,2]
[328750170,1717765271866,722.06198513,9.999e-05,2]
[328750171,1717765293645,1155.40031062,9.999e-05,2]
[328750172,1717765343177,164.57151092,9.999e-05,2]
[328750173,1717765344131,154.9690062,9.999e-05,2]
[328750174,1717765477314,462.7693761,0.00013947,2]
[328750325,1717765832972,-1502.79855918,0.00014777,2]
[328750327,1717765832982,-221.59231032,0.00014875,2]
[328750329,1717765832991,-1910.49735366,0.00014875,2]
[328750331,1717765833001,-2641.73909648,0.00014875,2]
[328750333,1717765833010,-11093.31738993,0.00014875,2]
[328750335,1717765833020,-1982.90053047,0.00014876,2]
[328750337,1717765833030,-23235.01361808,0.00014876,2]
[328750361,1717765833248,-270.5513048,0.00014876,2]
[328750458,1717765839312,-2087.74992474,0.00014776,2]
[328750459,1717765839324,-1045.83427,0.00014776,2]
[328750460,1717765839336,-333.5927164,0.00014776,2]
[328750579,1717765843088,-6118.5205388,0.00014776,2]
[328750581,1717765843101,-1357.64354458,0.00014876,2]
[328750585,1717765843117,-1512.54114391,0.00014876,2]
[328750829,1717765844872,-5320.15789806,0.00014876,2]
[328750851,1717765845075,-27862.18414833,0.00014876,2]
[328750853,1717765845085,-522.565431,0.00014996,2]
[328750855,1717765845095,-1100.27196223,0.00015,2]
[328750857,1717765845104,-2409.63345823,0.00015,2]
[328750859,1717765845114,-190.4326803,0.00016263,2]
[328750861,1717765845124,-270.91371236,0.00016264,2]
[328750863,1717765845133,-163.99863768,0.00016265,2]
[328750865,1717765845142,-1598.66522496,0.00016382,2]
[328750867,1717765845152,-1502.79855913,0.00016509,2]
[328750869,1717765845161,-1502.79855913,0.00018241,2]
[328750871,1717765845171,-425.06293695,0.000185,2]
[328750873,1717765845181,-412.00866418,0.000189,2]
[328750875,1717765845190,-80000.0,0.00019177,2]
[328750877,1717765845200,-17617.97841425,0.00019178,7]
[328750879,1717765845209,-184.53178956,0.00019178,2]
[328750881,1717765845218,-500.0,0.00019178,2]
[328750883,1717765845228,-500.0,0.00019178,2]
[328750885,1717765845237,-500.0,0.00019178,2]
[328750887,1717765845246,-418.95430044,0.00019178,2]
[328750889,1717765845256,-500.0,0.00019178,2]
[328750891,1717765845267,-409.81684997,0.00019178,2]
[328750893,1717765845278,-500.0,0.00019178,2]
[328750895,1717765845287,-500.0,0.00019178,2]
[328750897,1717765845296,-500.0,0.00019178,2]
[328750898,1717765845307,-500.0,0.00019178,2]
[328750900,1717765845317,-500.0,0.00019178,2]
[328750903,1717765845326,-299.14288929,0.00019178,2]
[328750905,1717765845336,-500.0,0.00019178,2]
[328750906,1717765845348,-500.0,0.00019178,2]
[328750909,1717765845358,-598.93539912,0.00019178,2]
[328750911,1717765845368,-500.0,0.00019178,2]
[328750913,1717765845378,-500.0,0.00019178,2]
[328750915,1717765845388,-369.83578956,0.00019178,2]
[328750917,1717765845397,-500.0,0.00019178,2]
[328750919,1717765845407,-500.0,0.00019178,2]
[328750921,1717765845417,-500.0,0.00019178,2]
[328750923,1717765845427,-314.16289344,0.00019178,2]
[328750925,1717765845438,-500.0,0.00019178,2]
[328750927,1717765845447,-500.0,0.00019178,2]
[328750929,1717765845457,-500.0,0.00019178,2]
[328750931,1717765845466,-500.0,0.00019178,2]
[328750933,1717765845476,-500.0,0.00019178,2]
[328750935,1717765845486,-500.0,0.00019178,2]
[328750937,1717765845495,-500.0,0.00019178,2]
[328750939,1717765845505,-500.0,0.00019178,2]
[328750941,1717765845515,-500.0,0.00019178,2]
[328750943,1717765845525,-500.0,0.00019178,2]
[328750945,1717765845535,-500.0,0.00019178,2]
[328750947,1717765845545,-500.0,0.00019178,2]
[328750949,1717765845554,-500.0,0.00019178,2]
[328750951,1717765845564,-500.0,0.00019178,2]
[328750953,1717765845574,-500.0,0.00019178,2]
[328750955,1717765845584,-500.0,0.00019178,2]
[328750957,1717765845593,-500.0,0.00019178,2]
[328750959,1717765845603,-500.0,0.00019178,2]
[328750961,1717765845612,-500.0,0.00019178,2]
[328750963,1717765845622,-500.0,0.00019178,2]
[328750965,1717765845632,-500.0,0.00019178,2]
[328750967,1717765845641,-500.0,0.00019178,2]
[328750969,1717765845651,-500.0,0.00019178,2]
[328750971,1717765845660,-500.0,0.00019178,2]
[328750973,1717765845670,-500.0,0.00019178,2]
[328750975,1717765845680,-500.0,0.00019178,2]
[328750977,1717765845691,-500.0,0.00019178,2]
[328750979,1717765845701,-500.0,0.00019178,2]
[328750981,1717765845711,-500.0,0.00019178,2]
[328750983,1717765845720,-500.0,0.00019178,2]
[328750985,1717765845730,-500.0,0.00019178,2]
[328750987,1717765845740,-500.0,0.00019178,2]
[328750989,1717765845749,-500.0,0.00019178,2]
[328750991,1717765845759,-541.89475176,0.00019178,2]
[328750993,1717765845769,-500.0,0.00019178,2]
[328750995,1717765845779,-1502.79855913,0.00019973,2]
[328750997,1717765845789,-528.82048607,0.0002,4]
[328750999,1717765845799,-281.19763205,0.00020763,2]
[328751001,1717765845808,-154.9690062,0.00020763,2]
[328751003,1717765845818,-150.0,0.000215,2]
[328751005,1717765845827,-1502.79855913,0.00021704,2]
[328751007,1717765845836,-166.666666,0.00021918,2]
[328751009,1717765845846,-166.666666,0.00022559,2]
[328751011,1717765845856,-275.80967841,0.00023,2]
[328751013,1717765845865,-166.666666,0.000232,2]
[328751015,1717765845875,-151.0,0.00023604,5]
[328751017,1717765845885,-166.666666,0.00023841,2]
[328751019,1717765845894,-412.00866418,0.000239,2]
[328751021,1717765845904,-3000.0,0.00023998,2]
[328751023,1717765845914,-1000.0,0.00024,15]
[328751025,1717765845923,-31881.11729423,0.00024,2]
[328751027,1717765845932,-151.0,0.00024036,7]
[328751029,1717765845942,-302.47161892,0.00024277,2]
[328751031,1717765845952,-631.99386697,0.00024277,2]
[328751033,1717765845962,-13327.93833465,0.00024277,2]
[328751035,1717765845973,-3835.10514789,0.00024277,2]
[328751037,1717765845984,-187.69514185,0.00024277,2]
[328751039,1717765845994,-155.20119616,0.00024277,2]
[328751041,1717765846003,-224.14582172,0.00024277,2]
[328751044,1717765846014,-240.40498934,0.00024277,2]
[328751046,1717765846024,-155.09842705,0.00024277,2]
[328751048,1717765846034,-298.4264413,0.00024277,2]
[328751050,1717765846043,-156.98418007,0.00024277,2]
[328751051,1717765846055,-393.10916144,0.00024277,2]
[328751054,1717765846065,-254.30812518,0.00024277,2]
[328751056,1717765846075,-417.3489686,0.00024277,2]
[328751058,1717765846085,-155.60955386,0.00024277,2]
[328751060,1717765846094,-155.35179315,0.00024277,2]
[328751062,1717765846104,-309.68167653,0.00024277,2]
[328751064,1717765846114,-161.05770218,0.00024277,2]
[328751066,1717765846123,-353.79315532,0.00024277,2]
[328751068,1717765846133,-157.97543374,0.00024277,2]
[328751070,1717765846142,-173.23814109,0.00024277,2]
[328751072,1717765846152,-642.15807754,0.00024277,2]
[328751074,1717765846161,-1278.46337057,0.00024278,2]
[328751076,1717765846170,-157.4950787,0.00024347,2]
[328751078,1717765846179,-151.0,0.00024468,7]
[328751080,1717765846189,-166.666666,0.00024482,2]
[328751081,1717765846199,-166.666666,0.00024493,2]
[328751083,1717765846208,-150.0,0.0002465,2]
[328751085,1717765846218,-472.49824011,0.00024658,2]
[328751087,1717765846228,-1910.49735366,0.00024872,2]
[328751089,1717765846237,-88888.0,0.00024873,3]
[328751091,1717765846247,-995.30840592,0.00024873,2]
[328751094,1717765846256,-151.0,0.00024899,7]
[328751097,1717765846269,-2000.0,0.000249,2]
[328751099,1717765846280,-592.0,0.000249,2]
[328751102,1717765846289,-4236.94913646,0.00024905,2]
[328751104,1717765846299,-273.0,0.00024932,2]
[328751107,1717765846310,-484.10266849,0.00024971,2]
[328751110,1717765846320,-1154.56534776,0.00024971,2]
[328751113,1717765846330,-156.76406228,0.00024971,2]
[328751115,1717765846339,-157.22231478,0.00024971,2]
[328751117,1717765846350,-751.71950332,0.00024971,2]
[328751129,1717765846488,-155.36370595,0.00024971,2]
[328751131,1717765846498,-529.13763825,0.00024971,2]
[328751133,1717765846508,-225.07584397,0.00024971,2]
[328751135,1717765846518,-418.87802054,0.00024971,2]
[328751137,1717765846527,-316.34712378,0.00024971,2]
[328751139,1717765846536,-613.94171707,0.00024971,2]
[328751141,1717765846546,-284.16402401,0.00024972,2]
[328751143,1717765846555,-216.1480945,0.00024972,2]
[328751145,1717765846565,-302.40695396,0.00024972,2]
[328751147,1717765846575,-9534.79943994,0.00024972,2]
[328751149,1717765846584,-64603.55075548,0.00024973,5]
[328751151,1717765846594,-13475.80399905,0.00024973,2]
[328751153,1717765846604,-151.0,0.00024973,2]
[328751155,1717765846613,-151.0,0.00024973,2]
[328751157,1717765846623,-151.0,0.00024973,2]
[328751159,1717765846632,-151.0,0.00024973,2]
[328751161,1717765846642,-151.0,0.00024973,2]
[328751163,1717765846651,-151.0,0.00024973,2]
[328751165,1717765846661,-199.642065,0.00024973,2]
[328751167,1717765846670,-512.987934,0.00024973,2]
[328751169,1717765846680,-512.987934,0.00024973,2]
[328751171,1717765846692,-151.0,0.00024973,2]
[328751172,1717765846701,-259.257064,0.00024973,2]
[328751175,1717765846711,-259.257064,0.00024973,2]
[328751176,1717765846720,-151.0,0.00024973,2]
[328751179,1717765846731,-480.382584,0.00024973,2]
[328751181,1717765846741,-480.382584,0.00024973,2]
[328751183,1717765846751,-248.814775,0.00024973,2]
[328751185,1717765846761,-248.814775,0.00024973,2]
[328751187,1717765846770,-223.378407,0.00024973,2]
[328751189,1717765846780,-223.378407,0.00024973,2]
[328751191,1717765846790,-151.0,0.00024973,2]
[328751193,1717765846799,-151.0,0.00024973,2]
[328751195,1717765846808,-216.961304,0.00024973,2]
[328751197,1717765846818,-237.18284,0.00024973,2]
[328751199,1717765846828,-216.961304,0.00024973,2]
[328751201,1717765846837,-339.113572,0.00024973,2]
[328751203,1717765846847,-151.0,0.00024973,2]
[328751205,1717765846857,-43880.0,0.00024975,4]
[328751207,1717765846867,-593.58290096,0.00024978,2]
[328751209,1717765846877,-25474.68242217,0.0002499,2]
[328751211,1717765846886,-158.004158,0.0002499,2]
[328751213,1717765846895,-151.0,0.0002499,2]
[328751215,1717765846905,-219.471229,0.0002499,2]
[328751217,1717765846914,-219.471229,0.0002499,2]
[328751219,1717765846924,-151.0,0.0002499,2]
[328751221,1717765846935,-151.0,0.0002499,2]
[328751223,1717765846944,-151.0,0.0002499,2]
[328751225,1717765846953,-151.0,0.0002499,2]
[328751227,1717765846962,-745.426025,0.0002499,2]
[328751229,1717765846972,-745.426025,0.0002499,2]
[328751231,1717765846981,-151.0,0.0002499,2]
[328751233,1717765846990,-151.0,0.0002499,2]
[328751235,1717765847000,-151.0,0.0002499,2]
[328751237,1717765847009,-512.987934,0.0002499,2]
[328751239,1717765847018,-512.987934,0.0002499,2]
[328751241,1717765847028,-151.0,0.0002499,2]
[328751243,1717765847037,-259.257064,0.0002499,2]
[328751245,1717765847046,-259.257064,0.0002499,2]
[328751247,1717765847055,-151.0,0.0002499,2]
[328751249,1717765847064,-480.382584,0.0002499,2]
[328751251,1717765847074,-480.382584,0.0002499,2]
[328751253,1717765847083,-248.814775,0.0002499,2]
[328751256,1717765847092,-248.814775,0.0002499,2]
[328751259,1717765847102,-223.378407,0.0002499,2]
[328751261,1717765847111,-223.378407,0.0002499,2]
[328751263,1717765847120,-151.0,0.0002499,2]
[328751265,1717765847129,-151.0,0.0002499,2]
[328751267,1717765847139,-216.961304,0.0002499,2]
[328751269,1717765847148,-237.18284,0.0002499,2]
[328751271,1717765847157,-216.961304,0.0002499,2]
[328751273,1717765847167,-339.113572,0.0002499,2]
[328751275,1717765847176,-154.9690062,0.00024995,2]
[328751277,1717765847187,-154.9690062,0.00024995,2]
[328751279,1717765847196,-213.31340462,0.00024996,2]
[328751281,1717765847207,-170.68790645,0.00024996,2]
[328751283,1717765847217,-2961.16348147,0.00024996,2]
[328751285,1717765847226,-789.39972493,0.00024996,2]
[328751287,1717765847235,-692.15201027,0.00024996,2]
[328751289,1717765847244,-158.16857231,0.00024996,2]
[328751291,1717765847254,-155.02501437,0.00024996,2]
[328751293,1717765847263,-247.03908741,0.00024996,4]
[328751295,1717765847278,-410.92671443,0.00024996,2]
[328751297,1717765847287,-5727.89608574,0.00024997,2]
[328751299,1717765847297,-155.07245699,0.00024998,2]
[328751301,1717765847308,-181.46788066,0.00024998,2]
[328751303,1717765847317,-295.86866693,0.00024998,2]
[328751305,1717765847326,-155.41742051,0.00024998,2]
[328751307,1717765847335,-155.0,0.00024998,2]
[328751309,1717765847346,-285.0,0.00024998,2]